[Event "Titled Tuesday Blitz May 31 Late 2022"]
[White "Lobanov, Sergei"]
[Black "Sarana, Alexey"]
[WhiteFideId "24183750"]
[BlackFideId "24133795"]
[WhiteElo "2524"]
[BlackElo "2666"]
[Result "0-1"]
[Round "10"]
[TimeControl "180+1"]
[Date "2022.05.31"]
[WhiteClock "0:00:16"]
[BlackClock "0:00:18"]

1. e4 {[%clk 0:03:00]}  c5 {[%clk 0:03:00]} 2. Nf3 {[%clk 0:03:01]}  d6 {[%clk 0:03:01]} 3. d4 {[%clk 0:03:02]}  Nf6 {[%clk 0:03:01]} 4. Nc3 {[%clk 0:03:02]}  cxd4 {[%clk 0:03:02]} 5. Nxd4 {[%clk 0:03:02]}  a6 {[%clk 0:03:03]} 6. Bg5 {[%clk 0:03:03]}  e6 {[%clk 0:03:00]} 7. f4 {[%clk 0:03:03]}  Qb6 {[%clk 0:02:59]} 8. a3 {[%clk 0:02:22]}  Nc6 {[%clk 0:02:56]} 9. Nb3 {[%clk 0:02:14]}  Qe3+ {[%clk 0:02:52]} 10. Qe2 {[%clk 0:02:11]}  Ng4 {[%clk 0:02:52]} 11. h3 {[%clk 0:02:00]}  Qg3+ {[%clk 0:02:42]} 12. Kd2 {[%clk 0:01:54]}  Nf2 {[%clk 0:02:42]} 13. Rg1 {[%clk 0:01:45]}  h6 {[%clk 0:02:42]} 14. Qe3 {[%clk 0:01:41]}  Qxe3+ {[%clk 0:02:34]} 15. Kxe3 {[%clk 0:01:41]}  hxg5 {[%clk 0:02:32]} 16. fxg5 {[%clk 0:01:41]}  Ng4+ {[%clk 0:02:06]} 17. hxg4 {[%clk 0:01:40]}  g6 {[%clk 0:02:07]} 18. Rd1 {[%clk 0:01:34]}  Be7 {[%clk 0:02:07]} 19. Kf2 {[%clk 0:01:31]}  Ne5 {[%clk 0:02:01]} 20. Be2 {[%clk 0:01:30]}  Bd7 {[%clk 0:02:00]} 21. Na5 {[%clk 0:01:22]}  O-O-O {[%clk 0:01:34]} 22. Rd4 {[%clk 0:01:06]}  Kc7 {[%clk 0:01:28]} 23. Rgd1 {[%clk 0:01:03]}  Bc6 {[%clk 0:01:28]} 24. b4 {[%clk 0:01:00]}  Bxg5 {[%clk 0:01:23]} 25. a4 {[%clk 0:00:47]}  Bh4+ {[%clk 0:01:15]} 26. Kg1 {[%clk 0:00:43]}  Bg5 {[%clk 0:01:12]} 27. Kf2 {[%clk 0:00:43]}  Bh4+ {[%clk 0:00:29]} 28. Kg1 {[%clk 0:00:43]}  b6 {[%clk 0:00:29]} 29. Nxc6 {[%clk 0:00:36]}  Nxc6 {[%clk 0:00:30]} 30. Rc4 {[%clk 0:00:35]}  Kb7 {[%clk 0:00:30]} 31. b5 {[%clk 0:00:33]}  axb5 {[%clk 0:00:29]} 32. Nxb5 {[%clk 0:00:34]}  Be7 {[%clk 0:00:29]} 33. a5 {[%clk 0:00:22]}  Rc8 {[%clk 0:00:26]} 34. a6+ {[%clk 0:00:20]}  Kb8 {[%clk 0:00:25]} 35. Nxd6 {[%clk 0:00:18]}  Rc7 {[%clk 0:00:17]} 36. Nb5 {[%clk 0:00:18]}  Bc5+ {[%clk 0:00:16]} 37. Rxc5 {[%clk 0:00:16]}  bxc5 {[%clk 0:00:17]} 38. Nxc7 {[%clk 0:00:16]}  Kxc7 {[%clk 0:00:18]} 39. Rd7+ {[%clk 0:00:16]}  Kxd7 {[%clk 0:00:18]} 0-1


[Site "https://www.chess.com"]

[Event "Titled Tuesday Blitz May 31 Late 2022"]
[White "Lomaia, Diana"]
[Black "Kosteniuk, Alexandra"]
[WhiteFideId "13612476"]
[BlackFideId "4128125"]
[WhiteElo "1744"]
[BlackElo "2469"]
[Result "0-1"]
[Round "10"]
[TimeControl "180+1"]
[Date "2022.05.31"]
[WhiteClock "0:00:14"]
[BlackClock "0:00:15"]

1. d4 {[%clk 0:03:00]}  Nf6 {[%clk 0:02:59]} 2. c4 {[%clk 0:03:01]}  e6 {[%clk 0:03:00]} 3. Nf3 {[%clk 0:03:02]}  c5 {[%clk 0:03:00]} 4. Nc3 {[%clk 0:03:01]}  d5 {[%clk 0:02:57]} 5. cxd5 {[%clk 0:02:58]}  exd5 {[%clk 0:02:55]} 6. Bg5 {[%clk 0:02:57]}  Be7 {[%clk 0:02:40]} 7. e3 {[%clk 0:02:57]}  O-O {[%clk 0:02:36]} 8. Bd3 {[%clk 0:02:54]}  cxd4 {[%clk 0:02:32]} 9. Nxd4 {[%clk 0:02:51]}  h6 {[%clk 0:02:28]} 10. Bh4 {[%clk 0:02:50]}  Nc6 {[%clk 0:02:27]} 11. Nf3 {[%clk 0:02:46]}  Bg4 {[%clk 0:02:26]} 12. Be2 {[%clk 0:02:38]}  Qa5 {[%clk 0:02:05]} 13. O-O {[%clk 0:02:35]}  Rad8 {[%clk 0:02:04]} 14. Nd4 {[%clk 0:02:31]}  Bxe2 {[%clk 0:02:02]} 15. Ncxe2 {[%clk 0:02:30]}  g6 {[%clk 0:01:58]} 16. Qb3 {[%clk 0:02:26]}  Qa6 {[%clk 0:01:52]} 17. Rac1 {[%clk 0:02:21]}  Kg7 {[%clk 0:01:49]} 18. h3 {[%clk 0:02:18]}  Rc8 {[%clk 0:01:40]} 19. Rfd1 {[%clk 0:02:07]}  Rfd8 {[%clk 0:01:39]} 20. Bg3 {[%clk 0:02:05]}  Ne4 {[%clk 0:01:37]} 21. Nxc6 {[%clk 0:02:02]}  bxc6 {[%clk 0:01:31]} 22. Rc2 {[%clk 0:01:45]}  Bf6 {[%clk 0:01:27]} 23. Nd4 {[%clk 0:01:31]}  c5 {[%clk 0:01:21]} 24. Nb5 {[%clk 0:01:25]}  Nxg3 {[%clk 0:01:04]} 25. fxg3 {[%clk 0:01:26]}  Qb6 {[%clk 0:00:58]} 26. Qa4 {[%clk 0:01:21]}  c4 {[%clk 0:00:55]} 27. Nd4 {[%clk 0:01:19]}  Re8 {[%clk 0:00:53]} 28. Kf2 {[%clk 0:01:14]}  Re4 {[%clk 0:00:52]} 29. Qd7 {[%clk 0:01:01]}  Rd8 {[%clk 0:00:52]} 30. Qa4 {[%clk 0:00:46]}  Rde8 {[%clk 0:00:44]} 31. Re2 {[%clk 0:00:41]}  R8e7 {[%clk 0:00:40]} 32. Qa3 {[%clk 0:00:20]}  a5 {[%clk 0:00:27]} 33. Qc3 {[%clk 0:00:19]}  Re8 {[%clk 0:00:23]} 34. h4 {[%clk 0:00:19]}  h5 {[%clk 0:00:22]} 35. Qa3 {[%clk 0:00:17]}  Bxd4 {[%clk 0:00:21]} 36. Rxd4 {[%clk 0:00:17]}  Qf6+ {[%clk 0:00:18]} 37. Kg1 {[%clk 0:00:15]}  Rxd4 {[%clk 0:00:17]} 38. Rf2 {[%clk 0:00:16]}  Rd1+ {[%clk 0:00:16]} 39. Kh2 {[%clk 0:00:16]}  Qe5 {[%clk 0:00:16]} 40. Qxa5 {[%clk 0:00:16]}  Rd3 {[%clk 0:00:15]} 41. Qa8 {[%clk 0:00:14]}  Rxa8 {[%clk 0:00:15]} 0-1


[Site "https://www.chess.com"]

[Event "Titled Tuesday Blitz May 31 Late 2022"]
[White "Maksimenko, Viktor"]
[Black "Demchenko, Anton"]
[WhiteFideId "13710478"]
[BlackFideId "4160258"]
[WhiteElo "2269"]
[BlackElo "2539"]
[Result "0-1"]
[Round "10"]
[TimeControl "180+1"]
[Date "2022.05.31"]
[WhiteClock "0:00:57"]
[BlackClock "0:00:38"]

1. d4 {[%clk 0:03:00]}  Nf6 {[%clk 0:02:55]} 2. c4 {[%clk 0:03:00]}  g6 {[%clk 0:02:55]} 3. Nc3 {[%clk 0:03:00]}  Bg7 {[%clk 0:02:55]} 4. e4 {[%clk 0:03:01]}  d6 {[%clk 0:02:56]} 5. h3 {[%clk 0:03:00]}  O-O {[%clk 0:02:55]} 6. Nf3 {[%clk 0:03:01]}  e5 {[%clk 0:02:54]} 7. d5 {[%clk 0:03:01]}  a5 {[%clk 0:02:54]} 8. g4 {[%clk 0:02:59]}  Na6 {[%clk 0:02:54]} 9. Be3 {[%clk 0:02:59]}  Nc5 {[%clk 0:02:54]} 10. Nd2 {[%clk 0:02:58]}  a4 {[%clk 0:02:54]} 11. Qc2 {[%clk 0:02:56]}  c6 {[%clk 0:02:53]} 12. a3 {[%clk 0:02:55]}  Bd7 {[%clk 0:02:51]} 13. O-O-O {[%clk 0:02:54]}  Ne8 {[%clk 0:02:37]} 14. Rg1 {[%clk 0:02:53]}  Nc7 {[%clk 0:02:26]} 15. Kb1 {[%clk 0:02:51]}  Kh8 {[%clk 0:02:23]} 16. Be2 {[%clk 0:02:49]}  b6 {[%clk 0:02:18]} 17. dxc6 {[%clk 0:02:47]}  Bxc6 {[%clk 0:02:18]} 18. Nd5 {[%clk 0:02:48]}  N7e6 {[%clk 0:02:16]} 19. Nf3 {[%clk 0:02:43]}  Nf4 {[%clk 0:01:56]} 20. Bf1 {[%clk 0:02:30]}  Nxd5 {[%clk 0:01:45]} 21. cxd5 {[%clk 0:02:25]}  Bd7 {[%clk 0:01:45]} 22. Nd2 {[%clk 0:02:21]}  Rc8 {[%clk 0:01:43]} 23. f3 {[%clk 0:02:15]}  b5 {[%clk 0:01:38]} 24. Be2 {[%clk 0:02:00]}  f5 {[%clk 0:01:28]} 25. gxf5 {[%clk 0:01:58]}  gxf5 {[%clk 0:01:29]} 26. Bxc5 {[%clk 0:01:57]}  Rxc5 {[%clk 0:01:28]} 27. Qd3 {[%clk 0:01:57]}  f4 {[%clk 0:01:25]} 28. Rc1 {[%clk 0:01:52]}  Qb6 {[%clk 0:01:22]} 29. Rxc5 {[%clk 0:01:47]}  dxc5 {[%clk 0:01:18]} 30. Qc3 {[%clk 0:01:36]}  Bf6 {[%clk 0:01:13]} 31. Rc1 {[%clk 0:01:35]}  Rc8 {[%clk 0:01:05]} 32. Bf1 {[%clk 0:01:30]}  c4 {[%clk 0:00:58]} 33. Qb4 {[%clk 0:01:30]}  Qc5 {[%clk 0:00:59]} 34. Qa5 {[%clk 0:01:23]}  Bd8 {[%clk 0:00:52]} 35. Qa6 {[%clk 0:01:20]}  Qb6 {[%clk 0:00:45]} 36. Qxb6 {[%clk 0:01:09]}  Bxb6 {[%clk 0:00:46]} 37. Kc2 {[%clk 0:01:02]}  Rg8 {[%clk 0:00:42]} 38. Nb1 {[%clk 0:01:02]}  Rg3 {[%clk 0:00:40]} 39. Be2 {[%clk 0:00:57]}  Rg2 {[%clk 0:00:40]} 40. Kd1 {[%clk 0:00:57]}  Be3 {[%clk 0:00:38]} 0-1


[Site "https://www.chess.com"]

[Event "Titled Tuesday Blitz May 31 Late 2022"]
[White "Mendoza Criollo, Carlos David"]
[Black "Stanisz, Patryk"]
[WhiteFideId "3618323"]
[BlackFideId "1123106"]
[WhiteElo "1715"]
[BlackElo "1833"]
[Result "1-0"]
[Round "10"]
[TimeControl "180+1"]
[Date "2022.06.01"]
[WhiteClock "0:00:33"]
[BlackClock "0:00:01"]

1. d4 {[%clk 0:02:59]}  f5 {[%clk 0:02:59]} 2. g4 {[%clk 0:02:58]}  d6 {[%clk 0:02:56]} 3. c4 {[%clk 0:02:56]}  fxg4 {[%clk 0:02:50]} 4. h3 {[%clk 0:02:56]}  Nf6 {[%clk 0:02:50]} 5. hxg4 {[%clk 0:02:55]}  Bxg4 {[%clk 0:02:48]} 6. Bh3 {[%clk 0:02:55]}  Bxh3 {[%clk 0:02:45]} 7. Nxh3 {[%clk 0:02:55]}  c6 {[%clk 0:02:32]} 8. Ng5 {[%clk 0:02:53]}  Qa5+ {[%clk 0:02:18]} 9. Nc3 {[%clk 0:02:53]}  Na6 {[%clk 0:02:03]} 10. a3 {[%clk 0:02:31]}  g6 {[%clk 0:01:49]} 11. Qd3 {[%clk 0:02:25]}  O-O-O {[%clk 0:01:38]} 12. Nf7 {[%clk 0:02:24]}  Bg7 {[%clk 0:01:33]} 13. Nxd8 {[%clk 0:02:22]}  Kxd8 {[%clk 0:01:27]} 14. Bd2 {[%clk 0:02:21]}  Qc7 {[%clk 0:01:10]} 15. O-O-O {[%clk 0:02:20]}  Qd7 {[%clk 0:01:10]} 16. e4 {[%clk 0:02:15]}  Ng4 {[%clk 0:01:06]} 17. Rdf1 {[%clk 0:02:04]}  c5 {[%clk 0:01:06]} 18. d5 {[%clk 0:02:03]}  Nc7 {[%clk 0:00:57]} 19. f4 {[%clk 0:02:01]}  a6 {[%clk 0:00:55]} 20. Qh3 {[%clk 0:01:36]}  b5 {[%clk 0:00:48]} 21. cxb5 {[%clk 0:01:35]}  axb5 {[%clk 0:00:49]} 22. f5 {[%clk 0:01:30]}  gxf5 {[%clk 0:00:42]} 23. Rxf5 {[%clk 0:01:28]}  Ne5 {[%clk 0:00:38]} 24. Rh5 {[%clk 0:01:28]}  h6 {[%clk 0:00:20]} 25. Qxd7+ {[%clk 0:01:27]}  Kxd7 {[%clk 0:00:21]} 26. Bxh6 {[%clk 0:01:26]}  Bxh6+ {[%clk 0:00:19]} 27. Rxh6 {[%clk 0:01:26]}  Rf8 {[%clk 0:00:19]} 28. R1h2 {[%clk 0:01:20]}  Ng4 {[%clk 0:00:18]} 29. Rh8 {[%clk 0:01:15]}  Rf1+ {[%clk 0:00:17]} 30. Kc2 {[%clk 0:01:16]}  Nxh2 {[%clk 0:00:17]} 31. Rxh2 {[%clk 0:01:17]}  b4 {[%clk 0:00:17]} 32. axb4 {[%clk 0:01:13]}  cxb4 {[%clk 0:00:18]} 33. Ne2 {[%clk 0:01:13]}  Nb5 {[%clk 0:00:16]} 34. Kb3 {[%clk 0:01:12]}  Re1 {[%clk 0:00:16]} 35. Kxb4 {[%clk 0:01:11]}  Nc7 {[%clk 0:00:15]} 36. Kc4 {[%clk 0:01:09]}  Ne8 {[%clk 0:00:13]} 37. b4 {[%clk 0:01:09]}  Nf6 {[%clk 0:00:14]} 38. e5 {[%clk 0:00:56]}  dxe5 {[%clk 0:00:12]} 39. Nc3 {[%clk 0:00:56]}  Rc1 {[%clk 0:00:10]} 40. Re2 {[%clk 0:00:51]}  Kd6 {[%clk 0:00:09]} 41. b5 {[%clk 0:00:44]}  e4 {[%clk 0:00:08]} 42. Kd4 {[%clk 0:00:41]}  Rh1 {[%clk 0:00:04]} 43. Nxe4+ {[%clk 0:00:41]}  Nxe4 {[%clk 0:00:04]} 44. Rxe4 {[%clk 0:00:42]}  Rd1+ {[%clk 0:00:05]} 45. Kc4 {[%clk 0:00:36]}  Rc1+ {[%clk 0:00:05]} 46. Kb4 {[%clk 0:00:34]}  Rb1+ {[%clk 0:00:03]} 47. Ka5 {[%clk 0:00:35]}  Ra1+ {[%clk 0:00:04]} 48. Kb6 {[%clk 0:00:35]}  Rd1 {[%clk 0:00:01]} 49. Re6+ {[%clk 0:00:33]}  Kd7 {[%clk 0:00:01]} 50. Re5 {[%clk 0:00:34]}  Kd6 {[%clk 0:00:01]} 51. Kb7 {[%clk 0:00:33]} 1-0


[Site "https://www.chess.com"]

[Event "Titled Tuesday Blitz May 31 Late 2022"]
[White "Moroni, Luca Jr"]
[Black "Paravyan, David"]
[WhiteFideId "865834"]
[BlackFideId "4194985"]
[WhiteElo "2573"]
[BlackElo "2569"]
[Result "1-0"]
[Round "10"]
[TimeControl "180+1"]
[Date "2022.05.31"]
[WhiteClock "0:00:28"]
[BlackClock "0:00:14"]

1. d4 {[%clk 0:03:00]}  Nf6 {[%clk 0:02:48]} 2. Nf3 {[%clk 0:02:59]}  g6 {[%clk 0:02:48]} 3. Bf4 {[%clk 0:02:59]}  Bg7 {[%clk 0:02:49]} 4. Nc3 {[%clk 0:02:59]}  d5 {[%clk 0:02:48]} 5. Nb5 {[%clk 0:02:59]}  Na6 {[%clk 0:02:48]} 6. e3 {[%clk 0:03:00]}  O-O {[%clk 0:02:48]} 7. h3 {[%clk 0:02:59]}  Bf5 {[%clk 0:02:47]} 8. Be2 {[%clk 0:02:58]}  c6 {[%clk 0:02:47]} 9. Nc3 {[%clk 0:02:57]}  Nb4 {[%clk 0:02:48]} 10. Rc1 {[%clk 0:02:53]}  Ne4 {[%clk 0:02:48]} 11. Nxe4 {[%clk 0:02:49]}  dxe4 {[%clk 0:02:46]} 12. Nd2 {[%clk 0:02:47]}  Nxa2 {[%clk 0:02:46]} 13. Ra1 {[%clk 0:02:47]}  Nb4 {[%clk 0:02:46]} 14. g4 {[%clk 0:02:44]}  Be6 {[%clk 0:02:46]} 15. Nxe4 {[%clk 0:02:44]}  Bd5 {[%clk 0:02:46]} 16. Bf3 {[%clk 0:02:44]}  c5 {[%clk 0:02:41]} 17. c3 {[%clk 0:02:38]}  Bxe4 {[%clk 0:02:40]} 18. Bxe4 {[%clk 0:02:37]}  Nd5 {[%clk 0:02:41]} 19. Bg3 {[%clk 0:02:36]}  cxd4 {[%clk 0:02:38]} 20. cxd4 {[%clk 0:02:35]}  e6 {[%clk 0:02:38]} 21. O-O {[%clk 0:02:31]}  Qd7 {[%clk 0:02:36]} 22. Qb3 {[%clk 0:02:30]}  Rfd8 {[%clk 0:02:24]} 23. Rfc1 {[%clk 0:02:29]}  a6 {[%clk 0:02:15]} 24. Rc2 {[%clk 0:02:18]}  Rac8 {[%clk 0:02:13]} 25. Rac1 {[%clk 0:02:17]}  Rxc2 {[%clk 0:02:11]} 26. Rxc2 {[%clk 0:02:17]}  Bf8 {[%clk 0:02:01]} 27. Kg2 {[%clk 0:02:13]}  b5 {[%clk 0:01:57]} 28. Bxd5 {[%clk 0:01:54]}  Qxd5+ {[%clk 0:01:53]} 29. Qxd5 {[%clk 0:01:54]}  Rxd5 {[%clk 0:01:52]} 30. Rc8 {[%clk 0:01:48]}  a5 {[%clk 0:01:36]} 31. Be5 {[%clk 0:01:42]}  a4 {[%clk 0:01:36]} 32. Bf6 {[%clk 0:01:32]}  Rd7 {[%clk 0:01:36]} 33. Ra8 {[%clk 0:01:30]}  h6 {[%clk 0:01:33]} 34. h4 {[%clk 0:01:27]}  Rb7 {[%clk 0:01:17]} 35. f4 {[%clk 0:01:24]}  b4 {[%clk 0:00:57]} 36. Rxa4 {[%clk 0:01:23]}  Rb8 {[%clk 0:00:57]} 37. b3 {[%clk 0:01:23]}  Bg7 {[%clk 0:00:50]} 38. Bxg7 {[%clk 0:01:21]}  Kxg7 {[%clk 0:00:51]} 39. Kf3 {[%clk 0:01:21]}  Kf6 {[%clk 0:00:42]} 40. g5+ {[%clk 0:01:18]}  hxg5 {[%clk 0:00:37]} 41. hxg5+ {[%clk 0:01:19]}  Ke7 {[%clk 0:00:37]} 42. Ra7+ {[%clk 0:01:19]}  Kf8 {[%clk 0:00:37]} 43. Ke4 {[%clk 0:01:19]}  Rc8 {[%clk 0:00:33]} 44. Rb7 {[%clk 0:01:18]}  Rc3 {[%clk 0:00:33]} 45. Rxb4 {[%clk 0:01:17]}  Ke7 {[%clk 0:00:31]} 46. Rb7+ {[%clk 0:01:16]}  Kf8 {[%clk 0:00:31]} 47. Ke5 {[%clk 0:01:03]}  Rxe3+ {[%clk 0:00:30]} 48. Kf6 {[%clk 0:01:03]}  Kg8 {[%clk 0:00:31]} 49. Rxf7 {[%clk 0:00:54]}  Re4 {[%clk 0:00:29]} 50. Kxg6 {[%clk 0:00:49]}  Rxd4 {[%clk 0:00:29]} 51. Rb7 {[%clk 0:00:43]}  Kf8 {[%clk 0:00:27]} 52. Kf6 {[%clk 0:00:42]}  Rxf4+ {[%clk 0:00:27]} 53. Kxe6 {[%clk 0:00:42]}  Rg4 {[%clk 0:00:15]} 54. Kf6 {[%clk 0:00:28]}  Rf4+ {[%clk 0:00:14]} 55. Kg6 {[%clk 0:00:28]} 1-0


[Site "https://www.chess.com"]

[Event "Titled Tuesday Blitz May 31 Late 2022"]
[White "Nakamura, Hikaru"]
[Black "Sadhwani, Raunak"]
[WhiteFideId "2016192"]
[BlackFideId "35093487"]
[WhiteElo "2850"]
[BlackElo "2616"]
[Result "1-0"]
[Round "10"]
[TimeControl "180+1"]
[Date "2022.05.31"]
[WhiteClock "0:00:07"]
[BlackClock "0:00:03"]

1. Nf3 {[%clk 0:03:00]}  d5 {[%clk 0:02:59]} 2. e3 {[%clk 0:03:01]}  Nf6 {[%clk 0:03:00]} 3. c4 {[%clk 0:03:01]}  e6 {[%clk 0:02:58]} 4. b3 {[%clk 0:03:02]}  Bd6 {[%clk 0:02:56]} 5. Bb2 {[%clk 0:03:02]}  O-O {[%clk 0:02:56]} 6. g3 {[%clk 0:03:02]}  Re8 {[%clk 0:02:53]} 7. Bg2 {[%clk 0:03:00]}  dxc4 {[%clk 0:02:49]} 8. bxc4 {[%clk 0:03:00]}  e5 {[%clk 0:02:50]} 9. d3 {[%clk 0:02:58]}  Bb4+ {[%clk 0:02:48]} 10. Bc3 {[%clk 0:02:56]}  Nc6 {[%clk 0:02:44]} 11. O-O {[%clk 0:02:53]}  Bf5 {[%clk 0:02:43]} 12. Ne1 {[%clk 0:02:51]}  Bc5 {[%clk 0:02:33]} 13. Qb3 {[%clk 0:02:22]}  Rb8 {[%clk 0:02:28]} 14. Na3 {[%clk 0:02:22]}  Qd7 {[%clk 0:02:12]} 15. Rd1 {[%clk 0:02:19]}  Bf8 {[%clk 0:02:08]} 16. Nac2 {[%clk 0:02:13]}  a6 {[%clk 0:02:04]} 17. f4 {[%clk 0:02:11]}  exf4 {[%clk 0:01:57]} 18. Rxf4 {[%clk 0:02:07]}  Ne5 {[%clk 0:01:39]} 19. e4 {[%clk 0:02:00]}  Bg4 {[%clk 0:01:33]} 20. Rd2 {[%clk 0:01:59]}  b5 {[%clk 0:01:32]} 21. c5 {[%clk 0:01:59]}  Ng6 {[%clk 0:01:27]} 22. Rxf6 {[%clk 0:01:41]}  gxf6 {[%clk 0:01:25]} 23. d4 {[%clk 0:01:42]}  b4 {[%clk 0:01:11]} 24. Bb2 {[%clk 0:01:37]}  Be6 {[%clk 0:01:08]} 25. c6 {[%clk 0:01:25]}  Qd6 {[%clk 0:00:40]} 26. d5 {[%clk 0:01:25]}  Bc8 {[%clk 0:00:39]} 27. Rf2 {[%clk 0:01:19]}  Bg7 {[%clk 0:00:39]} 28. Ne3 {[%clk 0:01:15]}  Qc5 {[%clk 0:00:35]} 29. g4 {[%clk 0:00:47]}  a5 {[%clk 0:00:34]} 30. N1c2 {[%clk 0:00:45]}  Ra8 {[%clk 0:00:25]} 31. Bd4 {[%clk 0:00:44]}  Qb5 {[%clk 0:00:22]} 32. Bf1 {[%clk 0:00:41]}  a4 {[%clk 0:00:20]} 33. Qb2 {[%clk 0:00:39]}  Qa5 {[%clk 0:00:19]} 34. Bxf6 {[%clk 0:00:39]}  a3 {[%clk 0:00:15]} 35. Qa1 {[%clk 0:00:38]}  Bf8 {[%clk 0:00:13]} 36. Bg2 {[%clk 0:00:25]}  Ba6 {[%clk 0:00:13]} 37. Nd4 {[%clk 0:00:24]}  Bd3 {[%clk 0:00:14]} 38. e5 {[%clk 0:00:15]}  Qb6 {[%clk 0:00:07]} 39. e6 {[%clk 0:00:14]}  fxe6 {[%clk 0:00:08]} 40. dxe6 {[%clk 0:00:14]}  b3 {[%clk 0:00:08]} 41. axb3 {[%clk 0:00:13]}  Ra5 {[%clk 0:00:06]} 42. Nd5 {[%clk 0:00:11]}  Rxd5 {[%clk 0:00:03]} 43. Bxd5 {[%clk 0:00:12]}  Be7 {[%clk 0:00:04]} 44. Bxe7 {[%clk 0:00:12]}  Nxe7 {[%clk 0:00:05]} 45. Bg2 {[%clk 0:00:08]}  Rd8 {[%clk 0:00:06]} 46. Qxa3 {[%clk 0:00:09]}  Ng6 {[%clk 0:00:03]} 47. e7 {[%clk 0:00:08]}  Re8 {[%clk 0:00:04]} 48. Nf5 {[%clk 0:00:06]}  Bxf5 {[%clk 0:00:02]} 49. gxf5 {[%clk 0:00:07]}  Nxe7 {[%clk 0:00:03]} 50. f6 {[%clk 0:00:08]}  Rf8 {[%clk 0:00:03]} 51. Qxe7 {[%clk 0:00:07]} 1-0


[Site "https://www.chess.com"]

[Event "Titled Tuesday Blitz May 31 Late 2022"]
[White "Pakleza, Zbigniew"]
[Black "Hardaway, Brewington"]
[WhiteFideId "1119290"]
[BlackFideId "30941849"]
[WhiteElo "2467"]
[BlackElo "1768"]
[Result "1/2-1/2"]
[Round "10"]
[TimeControl "180+1"]
[Date "2022.05.31"]
[WhiteClock "0:00:03"]
[BlackClock "0:00:08"]

1. d4 {[%clk 0:03:00]}  Nf6 {[%clk 0:02:59]} 2. Nf3 {[%clk 0:03:00]}  e6 {[%clk 0:02:59]} 3. Bf4 {[%clk 0:03:01]}  c5 {[%clk 0:03:00]} 4. c3 {[%clk 0:03:01]}  Nc6 {[%clk 0:03:00]} 5. e3 {[%clk 0:03:01]}  Be7 {[%clk 0:02:59]} 6. Nbd2 {[%clk 0:03:01]}  O-O {[%clk 0:03:00]} 7. Bd3 {[%clk 0:02:58]}  b6 {[%clk 0:02:59]} 8. O-O {[%clk 0:02:57]}  Bb7 {[%clk 0:03:00]} 9. a3 {[%clk 0:02:53]}  d6 {[%clk 0:02:59]} 10. Qe2 {[%clk 0:02:50]}  h6 {[%clk 0:02:55]} 11. h3 {[%clk 0:02:50]}  Re8 {[%clk 0:02:54]} 12. Bh2 {[%clk 0:02:49]}  Bf8 {[%clk 0:02:44]} 13. e4 {[%clk 0:02:47]}  cxd4 {[%clk 0:02:42]} 14. cxd4 {[%clk 0:02:48]}  Nd7 {[%clk 0:02:42]} 15. Rfc1 {[%clk 0:01:58]}  Rc8 {[%clk 0:02:39]} 16. Ba6 {[%clk 0:01:50]}  Qc7 {[%clk 0:02:21]} 17. b4 {[%clk 0:01:39]}  e5 {[%clk 0:02:00]} 18. Bxb7 {[%clk 0:01:16]}  Qxb7 {[%clk 0:02:00]} 19. d5 {[%clk 0:01:16]}  Ne7 {[%clk 0:01:53]} 20. Nc4 {[%clk 0:01:07]}  Ng6 {[%clk 0:01:49]} 21. Nfd2 {[%clk 0:01:06]}  Qb8 {[%clk 0:01:40]} 22. Kh1 {[%clk 0:01:01]}  Nf6 {[%clk 0:01:32]} 23. Qd1 {[%clk 0:00:53]}  Rc7 {[%clk 0:01:31]} 24. Rc2 {[%clk 0:00:50]}  Rec8 {[%clk 0:01:30]} 25. Rac1 {[%clk 0:00:51]}  Be7 {[%clk 0:01:24]} 26. Ne3 {[%clk 0:00:48]}  Ne8 {[%clk 0:01:18]} 27. g3 {[%clk 0:00:42]}  Bg5 {[%clk 0:01:17]} 28. Ndf1 {[%clk 0:00:36]}  Qb7 {[%clk 0:00:56]} 29. h4 {[%clk 0:00:33]}  Bd8 {[%clk 0:00:54]} 30. Qd3 {[%clk 0:00:27]}  Ne7 {[%clk 0:00:51]} 31. f3 {[%clk 0:00:27]}  h5 {[%clk 0:00:50]} 32. Bg1 {[%clk 0:00:26]}  g6 {[%clk 0:00:46]} 33. Bf2 {[%clk 0:00:24]}  Ng7 {[%clk 0:00:45]} 34. Kg2 {[%clk 0:00:24]}  f5 {[%clk 0:00:43]} 35. Nd2 {[%clk 0:00:22]}  b5 {[%clk 0:00:26]} 36. Nb3 {[%clk 0:00:20]}  a6 {[%clk 0:00:25]} 37. Na5 {[%clk 0:00:19]}  Qa8 {[%clk 0:00:19]} 38. Nc6 {[%clk 0:00:18]}  fxe4 {[%clk 0:00:13]} 39. fxe4 {[%clk 0:00:16]}  Ne8 {[%clk 0:00:10]} 40. g4 {[%clk 0:00:12]}  Kh7 {[%clk 0:00:09]} 41. gxh5 {[%clk 0:00:12]}  gxh5 {[%clk 0:00:09]} 42. Nxd8 {[%clk 0:00:12]}  Rxc2 {[%clk 0:00:08]} 43. Rxc2 {[%clk 0:00:13]}  Rxc2 {[%clk 0:00:08]} 44. Qxc2 {[%clk 0:00:10]}  Qxd8 {[%clk 0:00:09]} 45. Qe2 {[%clk 0:00:10]}  Nf6 {[%clk 0:00:10]} 46. Qf3 {[%clk 0:00:10]}  Ng6 {[%clk 0:00:10]} 47. Bg3 {[%clk 0:00:07]}  Qf8 {[%clk 0:00:07]} 48. Nf5 {[%clk 0:00:08]}  Ng4 {[%clk 0:00:07]} 49. Kh3 {[%clk 0:00:05]}  Qf6 {[%clk 0:00:06]} 50. Qc3 {[%clk 0:00:05]}  Nf4+ {[%clk 0:00:05]} 51. Bxf4 {[%clk 0:00:04]}  exf4 {[%clk 0:00:06]} 52. Qc7+ {[%clk 0:00:04]}  Kg6 {[%clk 0:00:06]} 53. Qc2 {[%clk 0:00:02]}  Ne5 {[%clk 0:00:06]} 54. Qg2+ {[%clk 0:00:02]}  Ng4 {[%clk 0:00:06]} 55. Qc2 {[%clk 0:00:01]}  Ne5 {[%clk 0:00:06]} 56. Qg2+ {[%clk 0:00:01]}  Kh7 {[%clk 0:00:06]} 57. Qc2 {[%clk 0:00:02]}  f3 {[%clk 0:00:05]} 58. Qf2 {[%clk 0:00:02]}  Qg6 {[%clk 0:00:04]} 59. Qg3 {[%clk 0:00:03]}  Qg4+ {[%clk 0:00:05]} 60. Qxg4 {[%clk 0:00:02]}  hxg4+ {[%clk 0:00:05]} 61. Kg3 {[%clk 0:00:03]}  Kg6 {[%clk 0:00:06]} 62. Nxd6 {[%clk 0:00:03]}  Kh5 {[%clk 0:00:07]} 63. Nf5 {[%clk 0:00:03]}  Nd3 {[%clk 0:00:06]} 64. d6 {[%clk 0:00:02]}  f2 {[%clk 0:00:06]} 65. Ne3 {[%clk 0:00:03]}  Ne5 {[%clk 0:00:04]} 66. Kxf2 {[%clk 0:00:03]}  Kxh4 {[%clk 0:00:04]} 67. Nf5+ {[%clk 0:00:03]}  Kg5 {[%clk 0:00:05]} 68. Kg3 {[%clk 0:00:04]}  Nd7 {[%clk 0:00:04]} 69. Nd4 {[%clk 0:00:02]}  Kf6 {[%clk 0:00:03]} 70. Kf4 {[%clk 0:00:01]}  g3 {[%clk 0:00:02]} 71. Nf3 {[%clk 0:00:02]}  g2 {[%clk 0:00:02]} 72. Kg3 {[%clk 0:00:01]}  Ke6 {[%clk 0:00:03]} 73. Kxg2 {[%clk 0:00:01]}  Kxd6 {[%clk 0:00:04]} 74. Kf2 {[%clk 0:00:02]}  Nb6 {[%clk 0:00:04]} 75. Ke3 {[%clk 0:00:02]}  Nc4+ {[%clk 0:00:03]} 76. Kd3 {[%clk 0:00:02]}  Nxa3 {[%clk 0:00:04]} 77. Nd4 {[%clk 0:00:03]}  Nc4 {[%clk 0:00:04]} 78. Nb3 {[%clk 0:00:03]}  Ke5 {[%clk 0:00:05]} 79. Nc5 {[%clk 0:00:03]}  Nb2+ {[%clk 0:00:05]} 80. Kc3 {[%clk 0:00:02]}  Nd1+ {[%clk 0:00:06]} 81. Kd3 {[%clk 0:00:02]}  Nf2+ {[%clk 0:00:06]} 82. Ke3 {[%clk 0:00:03]}  Ng4+ {[%clk 0:00:07]} 83. Kf3 {[%clk 0:00:03]}  Nf6 {[%clk 0:00:07]} 84. Ke3 {[%clk 0:00:02]}  Ng4+ {[%clk 0:00:07]} 85. Kd3 {[%clk 0:00:03]}  Nf2+ {[%clk 0:00:07]} 86. Ke3 {[%clk 0:00:03]}  Ng4+ {[%clk 0:00:08]} 1/2-1/2


[Site "https://www.chess.com"]